[Event "*** Titled Tuesday Blitz"]
[Site "Chess.com"]
[Date "2019.08.06"]
[Round "9"]
[White "FrenchMonster2002"]
[Black "EugeneRougon"]
[Result "1-0"]
[WhiteElo "2535"]
[BlackElo "2630"]
[TimeControl "180+2"]
[EndTime "15:10:14 PDT"]
[Termination "FrenchMonster2002 won by checkmate"]

1. e4 {[%clk 0:03:01.9]} 1... d6 {[%clk 0:02:49.4]} 2. d4 {[%clk 0:03:02.2]}
2... Nf6 {[%clk 0:02:49.9]} 3. Nc3 {[%clk 0:03:03.1]} 3... g6 {[%clk 0:02:51.8]}
4. f4 {[%clk 0:03:02.3]} 4... Bg7 {[%clk 0:02:52.4]} 5. Nf3 {[%clk 0:03:03.3]}
5... O-O {[%clk 0:02:49.9]} 6. Bd3 {[%clk 0:03:04.3]} 6... Nc6 {[%clk
0:02:50.1]} 7. e5 {[%clk 0:03:04]} 7... dxe5 {[%clk 0:02:49.9]} 8. fxe5 {[%clk
0:03:05.9]} 8... Nh5 {[%clk 0:02:51.1]} 9. Be2 {[%clk 0:03:01.1]} 9... Bg4
{[%clk 0:02:51.8]} 10. Be3 {[%clk 0:03:01.3]} 10... f6 {[%clk 0:02:52.4]} 11. h3
{[%clk 0:02:39.6]} 11... Bxf3 {[%clk 0:01:56]} 12. Bxf3 {[%clk 0:02:39]} 12...
Ng3 {[%clk 0:01:56.8]} 13. Rg1 {[%clk 0:02:25.3]} 13... fxe5 {[%clk 0:01:57.7]}
14. d5 {[%clk 0:02:17.3]} 14... Nd4 {[%clk 0:01:55.2]} 15. Bxd4 {[%clk
0:02:13.8]} 15... exd4 {[%clk 0:01:55.2]} 16. Ne2 {[%clk 0:02:15.5]} 16... Qd6
{[%clk 0:01:43]} 17. Qd2 {[%clk 0:01:54.1]} 17... Nxe2 {[%clk 0:01:24.3]} 18.
Qxe2 {[%clk 0:01:50.7]} 18... Qg3+ {[%clk 0:00:50]} 19. Kd1 {[%clk 0:01:31.4]}
19... Bh6 {[%clk 0:00:36.9]} 20. Re1 {[%clk 0:01:18.6]} 20... Be3 {[%clk
0:00:36.7]} 21. c3 {[%clk 0:01:15.2]} 21... Qf4 {[%clk 0:00:23]} 22. Kc2 {[%clk
0:01:12.6]} 22... c5 {[%clk 0:00:19]} 23. dxc6 {[%clk 0:01:13.2]} 23... bxc6
{[%clk 0:00:20.9]} 24. cxd4 {[%clk 0:01:11]} 24... Bxd4 {[%clk 0:00:21.1]} 25.
Qc4+ {[%clk 0:01:09.2]} 25... Kh8 {[%clk 0:00:19.2]} 26. Re4 {[%clk 0:01:10.4]}
26... Qg3 {[%clk 0:00:15.3]} 27. Qxd4+ {[%clk 0:01:11.5]} 27... Kg8 {[%clk
0:00:16.5]} 28. Rxe7 {[%clk 0:01:10]} 28... Rf7 {[%clk 0:00:16.7]} 29. Rae1
{[%clk 0:01:04.1]} 29... Raf8 {[%clk 0:00:16.7]} 30. Rxf7 {[%clk 0:01:02]} 30...
Kxf7 {[%clk 0:00:18.6]} 31. Qxa7+ {[%clk 0:00:28.5]} 31... Kg8 {[%clk
0:00:17.6]} 32. Re7 {[%clk 0:00:28.7]} 32... Qh4 {[%clk 0:00:15.1]} 33. Qc5
{[%clk 0:00:16.4]} 33... Rf5 {[%clk 0:00:10.8]} 34. Re5 {[%clk 0:00:14]} 34...
Rf8 {[%clk 0:00:06.9]} 35. Re4 {[%clk 0:00:05.3]} 35... Qf6 {[%clk 0:00:06]} 36.
Qc4+ {[%clk 0:00:05.3]} 36... Kg7 {[%clk 0:00:06.1]} 37. Qd4 {[%clk 0:00:04.6]}
37... c5 {[%clk 0:00:04.2]} 38. Qxf6+ {[%clk 0:00:05.7]} 38... Rxf6 {[%clk
0:00:06.1]} 39. Rc4 {[%clk 0:00:07.4]} 39... Rf5 {[%clk 0:00:07.2]} 40. a4
{[%clk 0:00:07.2]} 40... Kf6 {[%clk 0:00:07.5]} 41. a5 {[%clk 0:00:08.7]} 41...
Ke7 {[%clk 0:00:08.2]} 42. a6 {[%clk 0:00:09.3]} 42... Rf6 {[%clk 0:00:08.8]}
43. a7 {[%clk 0:00:10.5]} 43... Ra6 {[%clk 0:00:10.7]} 44. a8=Q {[%clk
0:00:11.8]} 44... Rxa8 {[%clk 0:00:12.6]} 45. Bxa8 {[%clk 0:00:13.1]} 45... Kd6
{[%clk 0:00:14.5]} 46. Bf3 {[%clk 0:00:13.8]} 46... h5 {[%clk 0:00:15.5]} 47.
Kd3 {[%clk 0:00:14.7]} 47... h4 {[%clk 0:00:17.4]} 48. Rxh4 {[%clk 0:00:15.1]}
48... g5 {[%clk 0:00:19.3]} 49. Rh5 {[%clk 0:00:16.5]} 49... Ke5 {[%clk
0:00:20.7]} 50. Rxg5+ {[%clk 0:00:18.1]} 50... Kf4 {[%clk 0:00:22.6]} 51. Rxc5
{[%clk 0:00:18.6]} 51... Kg3 {[%clk 0:00:24.3]} 52. Rg5+ {[%clk 0:00:19.6]}
52... Kf4 {[%clk 0:00:26.2]} 53. Rg4+ {[%clk 0:00:18.6]} 53... Ke5 {[%clk
0:00:28.1]} 54. h4 {[%clk 0:00:19.6]} 54... Kd6 {[%clk 0:00:30]} 55. h5 {[%clk
0:00:21]} 55... Kc5 {[%clk 0:00:31.3]} 56. h6 {[%clk 0:00:19.6]} 56... Kb5
{[%clk 0:00:33.2]} 57. h7 {[%clk 0:00:20.5]} 57... Kb6 {[%clk 0:00:35.1]} 58.
h8=Q {[%clk 0:00:21.3]} 58... Kc7 {[%clk 0:00:37]} 59. Qh7+ {[%clk 0:00:22]}
59... Kd6 {[%clk 0:00:38.9]} 60. Qh6+ {[%clk 0:00:23.3]} 60... Ke5 {[%clk
0:00:40.8]} 61. Qh5+ {[%clk 0:00:24.8]} 61... Ke6 {[%clk 0:00:42]} 62. Rg6+
{[%clk 0:00:26.7]} 62... Kf7 {[%clk 0:00:43]} 63. Qh7+ {[%clk 0:00:28.6]} 63...
Kf8 {[%clk 0:00:44.9]} 64. Rg8# {[%clk 0:00:30.5]} 1-0

[Event "*** Titled Tuesday Blitz"]
[Site "Chess.com"]
[Date "2019.08.06"]
[Round "9"]
[White "DiogenesSinopeus"]
[Black "santosalberto1987"]
[Result "0-1"]
[WhiteElo "2367"]
[BlackElo "2456"]
[TimeControl "180+2"]
[EndTime "15:10:32 PDT"]
[Termination "santosalberto1987 won by resignation"]

1. d4 {[%clk 0:03:01.9]} 1... d5 {[%clk 0:02:59.8]} 2. c4 {[%clk 0:03:02.9]}
2... c6 {[%clk 0:03:00.4]} 3. Nc3 {[%clk 0:03:04.4]} 3... Nf6 {[%clk 0:03:00.8]}
4. e3 {[%clk 0:03:05.6]} 4... a6 {[%clk 0:03:00.1]} 5. Nf3 {[%clk 0:03:06.8]}
5... Bf5 {[%clk 0:02:58.8]} 6. Ne5 {[%clk 0:03:07.1]} 6... Nbd7 {[%clk
0:02:47.1]} 7. Qb3 {[%clk 0:03:00.7]} 7... Rb8 {[%clk 0:02:23.9]} 8. cxd5 {[%clk
0:02:54]} 8... Nxe5 {[%clk 0:02:24.3]} 9. dxe5 {[%clk 0:02:45.3]} 9... Nxd5
{[%clk 0:02:24.9]} 10. Nxd5 {[%clk 0:02:42.4]} 10... cxd5 {[%clk 0:02:22.5]} 11.
Bd2 {[%clk 0:02:34.4]} 11... e6 {[%clk 0:02:22.3]} 12. Rc1 {[%clk 0:01:58.3]}
12... Be7 {[%clk 0:02:21.7]} 13. Qa4+ {[%clk 0:01:03.5]} 13... Qd7 {[%clk
0:02:20.7]} 14. Qa5 {[%clk 0:01:03.5]} 14... Rc8 {[%clk 0:02:05.1]} 15. Rxc8+
{[%clk 0:00:44.2]} 15... Qxc8 {[%clk 0:02:06.4]} 16. Be2 {[%clk 0:00:16.7]}
16... Qd8 {[%clk 0:01:53.3]} 17. Qxd8+ {[%clk 0:00:08]} 17... Kxd8 {[%clk
0:01:51.4]} 18. Ba5+ {[%clk 0:00:09.2]} 18... Kd7 {[%clk 0:01:52.2]} 19. Kd2
{[%clk 0:00:08.7]} 19... Rc8 {[%clk 0:01:52]} 20. Rc1 {[%clk 0:00:09.4]} 20...
Rxc1 {[%clk 0:01:47.6]} 21. Kxc1 {[%clk 0:00:11.3]} 21... Kc6 {[%clk 0:01:42.2]}
22. Kd2 {[%clk 0:00:10.8]} 22... g5 {[%clk 0:01:40.4]} 23. Kc3 {[%clk
0:00:09.8]} 23... Bf8 {[%clk 0:01:35]} 24. Bb4 {[%clk 0:00:08]} 24... Bg7 {[%clk
0:01:35.7]} 25. f4 {[%clk 0:00:07.3]} 25... Be4 {[%clk 0:01:31.8]} 26. g3 {[%clk
0:00:06.4]} 26... f6 {[%clk 0:01:32]} 27. exf6 {[%clk 0:00:03.6]} 27... Bxf6+
{[%clk 0:01:33.6]} 28. Kb3 {[%clk 0:00:04.9]} 28... Bf5 {[%clk 0:01:26.7]} 29.
Bc3 {[%clk 0:00:05.7]} 29... Be7 {[%clk 0:01:24.3]} 30. Be5 {[%clk 0:00:06.6]}
30... gxf4 {[%clk 0:01:23.9]} 31. exf4 {[%clk 0:00:05.9]} 31... Bc5 {[%clk
0:01:20.2]} 32. Kc3 {[%clk 0:00:06.6]} 32... Bg1 {[%clk 0:01:19.7]} 33. h4
{[%clk 0:00:03.7]} 33... Be4 {[%clk 0:01:16.5]} 34. g4 {[%clk 0:00:04]} 34... a5
{[%clk 0:00:59.3]} 35. h5 {[%clk 0:00:05.2]} 35... Kc5 {[%clk 0:00:58.4]} 36. g5
{[%clk 0:00:04.6]} 36... d4+ {[%clk 0:00:57.8]} 37. Kd2 {[%clk 0:00:06.1]} 37...
Be3+ {[%clk 0:00:55.7]} 38. Kd1 {[%clk 0:00:06.3]} 38... d3 {[%clk 0:00:56]} 39.
Bg4 {[%clk 0:00:06.8]} 39... Kd5 {[%clk 0:00:54.8]} 40. Bc3 {[%clk 0:00:04.8]}
40... a4 {[%clk 0:00:54.3]} 41. Bd2 {[%clk 0:00:04.2]} 41... Bd4 {[%clk
0:00:47.5]} 42. b3 {[%clk 0:00:03.6]} 42... a3 {[%clk 0:00:46.3]} 43. h6 {[%clk
0:00:04]} 43... Bf5 {[%clk 0:00:41.2]} 44. Bxf5 {[%clk 0:00:02.6]} 44... exf5
{[%clk 0:00:41.4]} 45. Bb4 {[%clk 0:00:03.2]} 45... Bb2 {[%clk 0:00:40.7]} 46.
Kd2 {[%clk 0:00:04.1]} 46... Ke4 {[%clk 0:00:41.1]} 47. g6 {[%clk 0:00:05.4]}
47... hxg6 {[%clk 0:00:40.9]} 48. Bc3 {[%clk 0:00:06.7]} 48... Bxc3+ {[%clk
0:00:39.9]} 49. Kxc3 {[%clk 0:00:08.6]} 49... Ke3 {[%clk 0:00:40.9]} 50. h7
{[%clk 0:00:10.5]} 50... d2 {[%clk 0:00:41.9]} 51. h8=Q {[%clk 0:00:12]} 51...
d1=Q {[%clk 0:00:42.1]} 52. Qe5+ {[%clk 0:00:05.4]} 52... Kf3 {[%clk 0:00:41.6]}
53. Kb4 {[%clk 0:00:05.4]} 53... Qc1 {[%clk 0:00:28.1]} 54. Qf6 {[%clk
0:00:02.3]} 54... Qxf4+ {[%clk 0:00:27.2]} 55. Kxa3 {[%clk 0:00:03.2]} 55... g5
{[%clk 0:00:28.4]} 56. Qg7 {[%clk 0:00:02.7]} 56... g4 {[%clk 0:00:29.1]} 57.
Qxb7+ {[%clk 0:00:03.7]} 57... Qe4 {[%clk 0:00:29.5]} 58. Qh7 {[%clk 0:00:02.6]}
58... g3 {[%clk 0:00:28.4]} 59. Qh1+ {[%clk 0:00:02.2]} 59... Kg4 {[%clk
0:00:27.7]} 60. Qg1 {[%clk 0:00:04.1]} 60... f4 {[%clk 0:00:26]} 61. b4 {[%clk
0:00:05.4]} 61... f3 {[%clk 0:00:26.9]} 62. b5 {[%clk 0:00:06.7]} 62... f2
{[%clk 0:00:27.8]} 63. Qd1+ {[%clk 0:00:08]} 63... Qf3+ {[%clk 0:00:27.5]} 0-1

[Event "*** Titled Tuesday Blitz"]
[Site "Chess.com"]
[Date "2019.08.06"]
[Round "9"]
[White "ama18"]
[Black "VladDobrov"]
[Result "0-1"]
[WhiteElo "2487"]
[BlackElo "2961"]
[TimeControl "180+2"]
[EndTime "15:10:36 PDT"]
[Termination "VladDobrov won by checkmate"]

1. d4 {[%clk 0:03:01.7]} 1... Nf6 {[%clk 0:03:00.8]} 2. c4 {[%clk 0:03:02.8]}
2... e6 {[%clk 0:03:02.3]} 3. Nf3 {[%clk 0:03:04]} 3... c5 {[%clk 0:03:01.2]} 4.
d5 {[%clk 0:03:04.1]} 4... exd5 {[%clk 0:03:02.8]} 5. cxd5 {[%clk 0:03:05.5]}
5... Bd6 {[%clk 0:03:04.7]} 6. Nc3 {[%clk 0:02:57.3]} 6... Bc7 {[%clk
0:03:06.1]} 7. g3 {[%clk 0:02:24.4]} 7... d6 {[%clk 0:03:07.2]} 8. Bg2 {[%clk
0:02:25.8]} 8... a6 {[%clk 0:03:08.8]} 9. a4 {[%clk 0:02:24.1]} 9... O-O {[%clk
0:03:10.7]} 10. O-O {[%clk 0:02:24.2]} 10... Re8 {[%clk 0:03:12.6]} 11. Nd2
{[%clk 0:02:13.5]} 11... Nbd7 {[%clk 0:03:14.5]} 12. Nc4 {[%clk 0:02:13.3]}
12... Rb8 {[%clk 0:03:12.7]} 13. a5 {[%clk 0:02:14.3]} 13... Ne5 {[%clk
0:03:13.4]} 14. Nxe5 {[%clk 0:02:13.5]} 14... Rxe5 {[%clk 0:03:13.7]} 15. Bf4
{[%clk 0:02:13.7]} 15... Re8 {[%clk 0:03:14.7]} 16. e4 {[%clk 0:02:09.5]} 16...
Bd7 {[%clk 0:03:06.7]} 17. Re1 {[%clk 0:02:01.1]} 17... Ng4 {[%clk 0:03:01.1]}
18. Qb1 {[%clk 0:01:24.4]} 18... Ne5 {[%clk 0:02:59.6]} 19. b4 {[%clk
0:01:25.3]} 19... cxb4 {[%clk 0:03:00.2]} 20. Bxe5 {[%clk 0:01:24.9]} 20... dxe5
{[%clk 0:02:45.2]} 21. Qxb4 {[%clk 0:01:26.3]} 21... Qf6 {[%clk 0:02:46.5]} 22.
Na4 {[%clk 0:01:20.8]} 22... Bxa4 {[%clk 0:02:34.2]} 23. Qxa4 {[%clk 0:01:17.5]}
23... b5 {[%clk 0:02:35.5]} 24. Qc2 {[%clk 0:01:11.9]} 24... Bd6 {[%clk
0:02:32.5]} 25. Rec1 {[%clk 0:01:11]} 25... h5 {[%clk 0:02:27.4]} 26. Qc6 {[%clk
0:01:08.6]} 26... Ra8 {[%clk 0:02:25.5]} 27. h4 {[%clk 0:01:00.3]} 27... Qe7
{[%clk 0:02:18.4]} 28. Rc2 {[%clk 0:00:53]} 28... g6 {[%clk 0:02:19.8]} 29. Rac1
{[%clk 0:00:49.3]} 29... Kg7 {[%clk 0:02:21.2]} 30. Bh3 {[%clk 0:00:42.6]} 30...
Reb8 {[%clk 0:02:18]} 31. Qc3 {[%clk 0:00:35.7]} 31... b4 {[%clk 0:02:15.1]} 32.
Qb3 {[%clk 0:00:34.2]} 32... Rb5 {[%clk 0:02:16.6]} 33. Ra2 {[%clk 0:00:34.3]}
33... Bc5 {[%clk 0:02:09.8]} 34. Rc4 {[%clk 0:00:34.9]} 34... Rab8 {[%clk
0:02:00]} 35. Kg2 {[%clk 0:00:35.6]} 35... Qd6 {[%clk 0:01:49.6]} 36. Rc1 {[%clk
0:00:28.9]} 36... Qd8 {[%clk 0:01:49.7]} 37. Kg1 {[%clk 0:00:27.2]} 37... Rxa5
{[%clk 0:01:48]} 38. Rxa5 {[%clk 0:00:22.7]} 38... Qxa5 {[%clk 0:01:49.9]} 39.
Bf1 {[%clk 0:00:22.7]} 39... Qb6 {[%clk 0:01:49.6]} 40. Rc2 {[%clk 0:00:22.2]}
40... a5 {[%clk 0:01:51]} 41. Kg2 {[%clk 0:00:22.7]} 41... Qa7 {[%clk
0:01:27.1]} 42. Ra2 {[%clk 0:00:22.5]} 42... Bd6 {[%clk 0:01:23.8]} 43. Bc4
{[%clk 0:00:12.6]} 43... Rc8 {[%clk 0:01:24.5]} 44. f3 {[%clk 0:00:10.2]} 44...
Qd4 {[%clk 0:01:25.4]} 45. Be2 {[%clk 0:00:07.6]} 45... Bc5 {[%clk 0:01:25.9]}
46. Qd1 {[%clk 0:00:07.1]} 46... b3 {[%clk 0:01:20.1]} 47. Rd2 {[%clk
0:00:03.5]} 47... Qb4 {[%clk 0:01:12.6]} 48. d6 {[%clk 0:00:05.4]} 48... Bxd6
{[%clk 0:01:13.8]} 49. Rxd6 {[%clk 0:00:05.6]} 49... b2 {[%clk 0:01:15.3]} 50.
Rd7 {[%clk 0:00:04.6]} 50... b1=Q {[%clk 0:01:13.3]} 51. Rxf7+ {[%clk
0:00:06.5]} 51... Kxf7 {[%clk 0:01:12.9]} 52. Qd7+ {[%clk 0:00:08.4]} 52... Qe7
{[%clk 0:01:09.9]} 53. Qxc8 {[%clk 0:00:08.8]} 53... Qb2 {[%clk 0:01:10.9]} 54.
Kf1 {[%clk 0:00:09.2]} 54... Kg7 {[%clk 0:01:02.5]} 55. Bc4 {[%clk 0:00:10.1]}
55... Qf8 {[%clk 0:00:55.4]} 56. Qd7+ {[%clk 0:00:10.6]} 56... Kh8 {[%clk
0:00:55.2]} 57. Be2 {[%clk 0:00:10.4]} 57... Qd4 {[%clk 0:00:37.6]} 58. Qc6
{[%clk 0:00:09.1]} 58... Qf7 {[%clk 0:00:33.9]} 59. Qa8+ {[%clk 0:00:06.8]}
59... Kg7 {[%clk 0:00:34.4]} 60. Qxa5 {[%clk 0:00:07.7]} 60... Qfa7 {[%clk
0:00:36]} 61. Qxa7+ {[%clk 0:00:04]} 61... Qxa7 {[%clk 0:00:37.9]} 62. f4 {[%clk
0:00:04.5]} 62... Kf6 {[%clk 0:00:39.8]} 63. fxe5+ {[%clk 0:00:03.1]} 63... Kxe5
{[%clk 0:00:41.7]} 64. Kg2 {[%clk 0:00:02.6]} 64... Qe3 {[%clk 0:00:43]} 65. Kh3
{[%clk 0:00:04.5]} 65... Qxe2 {[%clk 0:00:44.2]} 66. g4 {[%clk 0:00:05.8]} 66...
Qxg4+ {[%clk 0:00:45.7]} 67. Kh2 {[%clk 0:00:07.7]} 67... Kxe4 {[%clk
0:00:47.2]} 68. Kh1 {[%clk 0:00:09.6]} 68... Kf3 {[%clk 0:00:48.7]} 69. Kh2
{[%clk 0:00:11.1]} 69... Qg2# {[%clk 0:00:50.6]} 0-1

[Event "*** Titled Tuesday Blitz"]
[Site "Chess.com"]
[Date "2019.08.06"]
[Round "9"]
[White "vlad_Sid"]
[Black "2nd_life"]
[Result "0-1"]
[WhiteElo "2583"]
[BlackElo "2459"]
[TimeControl "180+2"]
[EndTime "15:10:51 PDT"]
[Termination "2nd_life won by resignation"]

1. c4 {[%clk 0:03:01.9]} 1... e5 {[%clk 0:03:00.1]} 2. g3 {[%clk 0:03:03.8]}
2... c6 {[%clk 0:03:00.9]} 3. Nf3 {[%clk 0:03:04.6]} 3... e4 {[%clk 0:03:01.7]}
4. Nd4 {[%clk 0:03:06.2]} 4... d5 {[%clk 0:03:02.9]} 5. d3 {[%clk 0:03:07.6]}
5... Nf6 {[%clk 0:02:31.6]} 6. Nc3 {[%clk 0:03:05.1]} 6... exd3 {[%clk
0:02:11.3]} 7. Qxd3 {[%clk 0:03:04.1]} 7... c5 {[%clk 0:02:03.4]} 8. Nf3 {[%clk
0:02:28.4]} 8... d4 {[%clk 0:02:02.6]} 9. Ne4 {[%clk 0:02:19.1]} 9... Bf5 {[%clk
0:01:52.5]} 10. Nd6+ {[%clk 0:02:18.4]} 10... Bxd6 {[%clk 0:01:51.8]} 11. Qxf5
{[%clk 0:02:20.3]} 11... O-O {[%clk 0:01:51.9]} 12. Bg2 {[%clk 0:02:17.8]} 12...
Re8 {[%clk 0:01:44.6]} 13. Bg5 {[%clk 0:01:59.8]} 13... Nbd7 {[%clk 0:01:29.8]}
14. Qd3 {[%clk 0:01:54.8]} 14... Qa5+ {[%clk 0:01:21.2]} 15. Bd2 {[%clk
0:01:54.4]} 15... Qb6 {[%clk 0:01:18]} 16. O-O {[%clk 0:01:53.5]} 16... Ne4
{[%clk 0:01:15.4]} 17. b3 {[%clk 0:01:38.7]} 17... a5 {[%clk 0:01:03.2]} 18. Ne5
{[%clk 0:01:04.3]} 18... Nxe5 {[%clk 0:00:50.5]} 19. Qxe4 {[%clk 0:01:02]} 19...
Nxc4 {[%clk 0:00:50.9]} 20. Qd3 {[%clk 0:00:37.3]} 20... Nxd2 {[%clk 0:00:40.6]}
21. Qxd2 {[%clk 0:00:39.2]} 21... Re7 {[%clk 0:00:39]} 22. Bf3 {[%clk
0:00:37.6]} 22... Be5 {[%clk 0:00:34.7]} 23. Rac1 {[%clk 0:00:36.2]} 23... g6
{[%clk 0:00:17.8]} 24. Bd5 {[%clk 0:00:34.2]} 24... Rd8 {[%clk 0:00:12.9]} 25.
Bc4 {[%clk 0:00:31]} 25... Qb4 {[%clk 0:00:14]} 26. Qg5 {[%clk 0:00:29.2]} 26...
Rdd7 {[%clk 0:00:07.5]} 27. a4 {[%clk 0:00:26.4]} 27... Kg7 {[%clk 0:00:06.9]}
28. f4 {[%clk 0:00:20.4]} 28... Bf6 {[%clk 0:00:07.8]} 29. Qg4 {[%clk
0:00:20.9]} 29... h5 {[%clk 0:00:07.7]} 30. Qf3 {[%clk 0:00:22.1]} 30... Re3
{[%clk 0:00:08.4]} 31. Qf2 {[%clk 0:00:18.9]} 31... Rde7 {[%clk 0:00:09.7]} 32.
f5 {[%clk 0:00:17.4]} 32... g5 {[%clk 0:00:10.7]} 33. Rcd1 {[%clk 0:00:15.2]}
33... Qb6 {[%clk 0:00:07.9]} 34. Qg2 {[%clk 0:00:15.8]} 34... Qd6 {[%clk
0:00:08.4]} 35. Rf3 {[%clk 0:00:07.1]} 35... b6 {[%clk 0:00:08.5]} 36. Rdf1
{[%clk 0:00:06.9]} 36... Qe5 {[%clk 0:00:09.2]} 37. Rxe3 {[%clk 0:00:07.9]}
37... Qxe3+ {[%clk 0:00:10.2]} 38. Rf2 {[%clk 0:00:07]} 38... g4 {[%clk
0:00:11.2]} 39. Kh1 {[%clk 0:00:07.6]} 39... Re5 {[%clk 0:00:11.7]} 40. Rf1
{[%clk 0:00:07.6]} 40... Qe4 {[%clk 0:00:10.3]} 41. Qxe4 {[%clk 0:00:08.2]}
41... Rxe4 {[%clk 0:00:11.5]} 42. Kg2 {[%clk 0:00:09.6]} 42... Re3 {[%clk
0:00:12.7]} 43. h3 {[%clk 0:00:07.9]} 43... Be5 {[%clk 0:00:13.5]} 44. hxg4
{[%clk 0:00:04]} 44... hxg4 {[%clk 0:00:14.8]} 45. f6+ {[%clk 0:00:03.1]} 45...
Kg6 {[%clk 0:00:15.6]} 46. Bd3+ {[%clk 0:00:04.3]} 46... Rxd3 {[%clk 0:00:13.4]}
47. exd3 {[%clk 0:00:04.5]} 47... Bxf6 {[%clk 0:00:15.3]} 48. Rf4 {[%clk
0:00:05.3]} 48... Bg5 {[%clk 0:00:11.8]} 49. Re4 {[%clk 0:00:04.1]} 49... Kf5
{[%clk 0:00:12.5]} 50. Re8 {[%clk 0:00:05.4]} 50... Bd2 {[%clk 0:00:11.5]} 51.
Kf2 {[%clk 0:00:06.2]} 51... Bb4 {[%clk 0:00:12.2]} 52. Rb8 {[%clk 0:00:05.2]}
52... Kg5 {[%clk 0:00:13]} 53. Rxb6 {[%clk 0:00:06.3]} 53... f5 {[%clk
0:00:14.7]} 54. Rb8 {[%clk 0:00:05.6]} 54... Kh5 {[%clk 0:00:15.7]} 55. Rg8
{[%clk 0:00:05.1]} 55... Kh6 {[%clk 0:00:16.5]} 56. Kg2 {[%clk 0:00:04.4]} 56...
Kh5 {[%clk 0:00:17.2]} 57. Rf8 {[%clk 0:00:05.3]} 57... Kg6 {[%clk 0:00:18.1]}
58. Kf2 {[%clk 0:00:06.6]} 58... c4 {[%clk 0:00:18.1]} 59. Rg8+ {[%clk
0:00:03.1]} 59... Kf7 {[%clk 0:00:19]} 60. Rc8 {[%clk 0:00:04.7]} 60... cxb3
{[%clk 0:00:19.7]} 61. Rc1 {[%clk 0:00:05]} 61... b2 {[%clk 0:00:21.1]} 62. Rb1
{[%clk 0:00:06]} 62... Bc3 {[%clk 0:00:22.6]} 63. Ke2 {[%clk 0:00:07.9]} 63...
Ke6 {[%clk 0:00:23.5]} 64. Kd1 {[%clk 0:00:09.3]} 64... Ke5 {[%clk 0:00:24.9]}
65. Kc2 {[%clk 0:00:10.7]} 65... f4 {[%clk 0:00:26.1]} 66. Re1+ {[%clk
0:00:11.8]} 66... Bxe1 {[%clk 0:00:26.5]} 0-1

[Event "*** Titled Tuesday Blitz"]
[Site "Chess.com"]
[Date "2019.08.06"]
[Round "9"]
[White "Bathory44"]
[Black "Gareth-Bale11"]
[Result "1-0"]
[WhiteElo "2604"]
[BlackElo "2732"]
[TimeControl "180+2"]
[EndTime "15:10:58 PDT"]
[Termination "Bathory44 won by checkmate"]

1. e4 {[%clk 0:03:01.9]} 1... c5 {[%clk 0:02:59.2]} 2. c3 {[%clk 0:03:01.2]}
2... Nf6 {[%clk 0:02:55.3]} 3. e5 {[%clk 0:02:59.3]} 3... Nd5 {[%clk 0:02:56.1]}
4. d4 {[%clk 0:03:00.6]} 4... cxd4 {[%clk 0:02:57.7]} 5. Nf3 {[%clk 0:03:02.1]}
5... Nc6 {[%clk 0:02:58.1]} 6. cxd4 {[%clk 0:03:02.9]} 6... d6 {[%clk
0:02:50.2]} 7. Bc4 {[%clk 0:03:02.9]} 7... Nb6 {[%clk 0:02:50.8]} 8. Bb5 {[%clk
0:03:03.9]} 8... Bg4 {[%clk 0:02:41.4]} 9. h3 {[%clk 0:02:56.7]} 9... Bxf3
{[%clk 0:02:39.1]} 10. Qxf3 {[%clk 0:02:57.1]} 10... d5 {[%clk 0:02:39.9]} 11.
Bg5 {[%clk 0:02:31.2]} 11... h6 {[%clk 0:02:31.2]} 12. Bh4 {[%clk 0:02:30.7]}
12... Qd7 {[%clk 0:02:28.2]} 13. O-O {[%clk 0:02:25.9]} 13... e6 {[%clk
0:02:25.7]} 14. Qg4 {[%clk 0:02:09.9]} 14... h5 {[%clk 0:02:11.1]} 15. Qf3
{[%clk 0:02:03.8]} 15... Rc8 {[%clk 0:01:35.4]} 16. Nd2 {[%clk 0:02:02.7]} 16...
Be7 {[%clk 0:01:30]} 17. Bxe7 {[%clk 0:02:00.3]} 17... Qxe7 {[%clk 0:01:23.4]}
18. Rac1 {[%clk 0:01:59.9]} 18... Qg5 {[%clk 0:01:16.9]} 19. Qe3 {[%clk
0:01:42.1]} 19... Qxe3 {[%clk 0:01:03.9]} 20. fxe3 {[%clk 0:01:44]} 20... Ke7
{[%clk 0:01:01.4]} 21. Bxc6 {[%clk 0:01:41.9]} 21... Rxc6 {[%clk 0:00:48.1]} 22.
Rxc6 {[%clk 0:01:42.5]} 22... bxc6 {[%clk 0:00:50]} 23. Rc1 {[%clk 0:01:43.6]}
23... Rc8 {[%clk 0:00:50.6]} 24. Rc5 {[%clk 0:01:35.2]} 24... f6 {[%clk
0:00:51.4]} 25. exf6+ {[%clk 0:01:18.3]} 25... gxf6 {[%clk 0:00:52.2]} 26. Kf2
{[%clk 0:01:19.8]} 26... Kd6 {[%clk 0:00:52.6]} 27. Ra5 {[%clk 0:01:18.9]} 27...
Rc7 {[%clk 0:00:53.2]} 28. b3 {[%clk 0:01:10.7]} 28... e5 {[%clk 0:00:53.4]} 29.
Nf3 {[%clk 0:01:10]} 29... Nd7 {[%clk 0:00:51.4]} 30. Ra6 {[%clk 0:01:05.6]}
30... Nf8 {[%clk 0:00:46.1]} 31. Nh4 {[%clk 0:01:05]} 31... Ke6 {[%clk
0:00:41.4]} 32. g4 {[%clk 0:01:05.1]} 32... hxg4 {[%clk 0:00:42]} 33. hxg4
{[%clk 0:01:07]} 33... Nh7 {[%clk 0:00:40.7]} 34. Nf5 {[%clk 0:01:06.6]} 34...
Ng5 {[%clk 0:00:39.9]} 35. b4 {[%clk 0:00:57.8]} 35... Ne4+ {[%clk 0:00:29.2]}
36. Kf3 {[%clk 0:00:57.4]} 36... Kd7 {[%clk 0:00:25.7]} 37. a3 {[%clk
0:00:50.1]} 37... Rb7 {[%clk 0:00:25.7]} 38. Ng3 {[%clk 0:00:37.8]} 38... Nd2+
{[%clk 0:00:22.6]} 39. Ke2 {[%clk 0:00:38.7]} 39... Nc4 {[%clk 0:00:23.7]} 40.
Kd3 {[%clk 0:00:38.7]} 40... Kc7 {[%clk 0:00:21.2]} 41. e4 {[%clk 0:00:35.2]}
41... Nd6 {[%clk 0:00:18.7]} 42. exd5 {[%clk 0:00:34.9]} 42... cxd5 {[%clk
0:00:19.8]} 43. Nf5 {[%clk 0:00:34.6]} 43... Ne4 {[%clk 0:00:15.9]} 44. Ne7
{[%clk 0:00:28]} 44... Rb5 {[%clk 0:00:13.6]} 45. Rxa7+ {[%clk 0:00:27.8]} 45...
Kd6 {[%clk 0:00:14.2]} 46. Nf5+ {[%clk 0:00:28.3]} 46... Kc6 {[%clk 0:00:15.5]}
47. Ra6+ {[%clk 0:00:29.3]} 47... Kb7 {[%clk 0:00:15.6]} 48. Re6 {[%clk
0:00:29.4]} 48... Kc7 {[%clk 0:00:15.9]} 49. Re7+ {[%clk 0:00:29.6]} 49... Kd8
{[%clk 0:00:16.7]} 50. Rf7 {[%clk 0:00:29.6]} 50... Rb6 {[%clk 0:00:17.9]} 51.
Rf8+ {[%clk 0:00:26.6]} 51... Kd7 {[%clk 0:00:18.7]} 52. Rf7+ {[%clk 0:00:28.2]}
52... Ke8 {[%clk 0:00:19.9]} 53. Re7+ {[%clk 0:00:28]} 53... Kd8 {[%clk
0:00:21.3]} 54. dxe5 {[%clk 0:00:29.5]} 54... fxe5 {[%clk 0:00:19.8]} 55. Rxe5
{[%clk 0:00:30.2]} 55... Nf2+ {[%clk 0:00:18.2]} 56. Kd4 {[%clk 0:00:31.3]}
56... Nxg4 {[%clk 0:00:19.6]} 57. Rxd5+ {[%clk 0:00:32.7]} 57... Kc7 {[%clk
0:00:21.3]} 58. Rc5+ {[%clk 0:00:34]} 58... Kb7 {[%clk 0:00:22.1]} 59. Ne3
{[%clk 0:00:32]} 59... Nf2 {[%clk 0:00:22.3]} 60. Nd5 {[%clk 0:00:32.3]} 60...
Rh6 {[%clk 0:00:22.9]} 61. Rb5+ {[%clk 0:00:30.9]} 61... Ka6 {[%clk 0:00:24.3]}
62. Ra5+ {[%clk 0:00:31.9]} 62... Kb7 {[%clk 0:00:25.3]} 63. Rb5+ {[%clk
0:00:29.4]} 63... Ka6 {[%clk 0:00:25.9]} 64. Rb8 {[%clk 0:00:26.6]} 64... Rh4+
{[%clk 0:00:20.4]} 65. Kc5 {[%clk 0:00:27.2]} 65... Nd3+ {[%clk 0:00:21.5]} 66.
Kc6 {[%clk 0:00:24.9]} 66... Rh6+ {[%clk 0:00:22.2]} 67. Kd7 {[%clk 0:00:24.9]}
67... Ne5+ {[%clk 0:00:23.3]} 68. Kc8 {[%clk 0:00:22.5]} 68... Rc6+ {[%clk
0:00:22.5]} 69. Nc7+ {[%clk 0:00:21.9]} 69... Ka7 {[%clk 0:00:21.7]} 70. Rb7#
{[%clk 0:00:22.9]} 1-0